Cogmind - Beta 14 @@@ ROGUE MODE // 2024.09.26 @ 16:19:20 Player: star Result: Destroyed by 64-46P(R) with Subdweller Laser Performance ------------- Evolutions (0) 0 Regions Visited (2) 400 Robots Destroyed (18) 90 Value Destroyed (672) 672 Prototype IDs (11) 220 Alien Tech Used (0) 0 Bonus (0) 0 TOTAL SCORE: 1382 Bonus ------- None Cogmind --------- Core Integrity 0/250 Matter 241/300 Energy 200/200 System Corruption 0% Temperature Cool (6) Movement Rolling (105) Ox1 Location -10/Subcaves Parts ------- > --- POWER (1) -------- Subdweller Power Source > --- PROPULSION (2) --- Armored Wheel Armored Wheel > --- UTILITY (2) ------ Scrap Shield > --- WEAPON (2) ------- Subdweller Shrapnel Launcher > --- INVENTORY (5) ---- Spiked Treads Improved Targeting Computer Power Bank Subdweller Machine Gun Multitool Peak State ------------ > --- POWER ------------ Light Ion Engine > --- PROPULSION ------- Armored Wheel Armored Wheel > --- UTILITY ---------- Scrap Shield > --- WEAPON ----------- Subdweller Laser Barrage Gun > --- INVENTORY -------- Targeting Computer Improved Targeting Computer Hardened Light Armor Plating Power Bank Beam Cannon [Rating: 15] Favorites ----------- Power Light Ion Engine Engine Light Ion Engine Propulsion Armored Wheel Wheel Armored Wheel Utility Scrap Shield Device Improved Terrain Scanner Storage Large Storage Unit Protection Scrap Shield Weapon Beam Cannon Energy Gun Subdweller Laser Energy Cannon Beam Cannon Ballistic Gun Barrage Gun Ballistic Cannon Light Cannon Launcher Subdweller Shrapnel Launcher Special Weapon Flamer Build | -11 -10 -10 ------- Run | Yrd Mat Sub Slots Evolved . | . . . Power . | . . . Propulsion . | . . . Utility . | . . . Weapon . | . . . Parts Attached 32 | 7 11 14 Power 4 | 1 1 2 Engine 4 | 1 1 2 Core . | . . . Reactor . | . . . Propulsion 4 | 2 2 . Treads . | . . . Leg . | . . . Wheel 4 | 2 2 . Hover . | . . . Flight . | . . . Utility 7 | 1 5 1 Device 1 | . 1 . Storage 2 | 1 1 . Processor . | . . . Hackware . | . . . Protection 4 | . 3 1 Artifact . | . . . Weapon 17 | 3 3 11 Energy Gun 2 | 1 . 1 Energy Cannon 6 | . 2 4 Ballistic Gun 4 | 2 . 2 Ballistic Cannon 3 | . 1 2 Launcher 1 | . . 1 Special Weapon 1 | . . 1 Impact Weapon . | . . . Slashing Weapon . | . . . Piercing Weapon . | . . . Special Melee Weapon . | . . . Unidentified Prototypes . | . . . Parts Lost 2 | . 1 1 Power 1 | . 1 . Propulsion . | . . . Utility . | . . . Weapon 1 | . . 1 Highest Loss Streak 1 | . 1 1 To Critical Strikes . | . . . Average Slot Usage (%) 84 | . 94 79 Engine 6 | . 9 5 Wheel 28 | . 28 28 Storage 6 | . 14 3 Protection 13 | . 13 13 Energy Gun 5 | . . 8 Energy Cannon 6 | . 12 4 Ballistic Gun 7 | . 1 10 Ballistic Cannon 6 | . 13 2 Special Weapon 1 | . . 2 Peak Build Rating 15 | 6 12 15 Average Rating 12 | 4 10 13 On Entrance 5 | . 6 11 Naked Turns . | . . . Heaviest Build 36 | 11 36 33 Greatest Support 24 | 20 24 24 Greatest Overweight (x) 1 | . 1 1 Average Overweight (x) . | . . . Largest Inventory Capacity 15 | 8 15 15 Average Capacity 9 | 6 13 7 Most Carried 15 | 1 15 15 Average Carried 8 | . 10 7 Final Capacity 15 | 8 15 5 Final Carried 15 | 1 15 5 Class Distribution -------------------- 100% | Mutant Dominant Class ---------------- Mutant | -10/Materials Mutant | -10/Subcaves Resources | -11 -10 -10 ----------- Run | Yrd Mat Sub Matter Collected 1019 | 252 244 523 Remotely . | . . . Salvage Created 705 | . 269 436 Parts 45 | . 21 24 Haulers Intercepted 1 | . 1 . Recyclers Shooed . | . . . Parts Field Recycled . | . . . Retrieved Matter . | . . . Parts Self-Destructed 4 | . . 4 Prevented . | . . . Kills | -11 -10 -10 ------- Run | Yrd Mat Sub Combat Hostiles Destroyed 16 | . 6 10 Guns 5 | . . 5 Cannons 9 | . 6 3 AOE 1 | . . 1 Classes Destroyed 6 | . 3 3 Tunneler 1 | . 1 . Hauler 1 | . 1 . Grunt 6 | . 6 . Artisan 1 | . . 1 Cobbler 1 | . . 1 Subdweller 10 | . . 10 Best Kill Streak 2 | . 2 2 Combat Bots Only 2 | . 2 2 Max Kills in Single Turn 1 | . 1 1 Gunslinging . | . . . Exploded 1 | . . 1 Melee . | . . . Uniques/NPCs Destroyed . | . . . Combat | -11 -10 -10 -------- Run | Yrd Mat Sub Hostile Shots Fired 99 | . 30 69 Missed 29 | . 7 22 Damage Taken 1468 | . 344 1124 Core 250 | . 105 145 Absorbed by Shields . | . . . Core Remaining (%) 100 | 100 . . Volleys Fired 144 | . 36 108 Largest 2 | . 2 2 Hottest 140 | . 95 140 Shots Fired 268 | . 62 206 Gun 71 | . . 71 Cannon 187 | . 62 125 Launcher 2 | . . 2 Special 8 | . . 8 Kinetic 137 | . 33 104 Thermal 131 | . 29 102 Explosive . | . . . Electromagnetic . | . . . Robot Hit Streak 33 | . 8 33 Robot Miss Streak 2 | . 2 2 Penetration Max . | . . . Secondary Targets . | . . . Shots Hit Robots 93 | . 26 67 Core Hits 32 | . 12 20 Critical Kills 3 | . . 3 Critical Parts Destroyed . | . . . Critical Strikes 4 | . . 4 Burn 1 | . . 1 Meltdown 1 | . . 1 Destroy 2 | . . 2 Melee Attacks . | . . . Impact . | . . . Slashing . | . . . Piercing . | . . . Sneak Attacks . | . . . Combat Hostiles . | . . . Follow-up Attacks . | . . . Damage Inflicted 1612 | . 475 1137 Guns 496 | . . 496 Cannons 874 | . 475 399 Explosions 173 | . . 173 Melee . | . . . Ramming . | . . . Kinetic 804 | . 247 557 Thermal 808 | . 228 580 Explosive . | . . . Electromagnetic . | . . . Impact . | . . . Slashing . | . . . Piercing . | . . . Highest Corruption . | . . . Average Corruption . | . . . Corruption Purged . | . . . Corruption Blocked . | . . . Overload Shots . | . . . Overflow Damage . | . . . Projectiles . | . . . Explosions . | . . . Melee . | . . . Knockbacks 7 | . 4 3 Impact . | . . . Kinetic 5 | . 2 3 Secondary 2 | . 2 . Self-Inflicted Damage 26 | . . 26 Shots 1 | . . 1 Rammed . | . . . Targets Rammed . | . . . Kicked . | . . . Crushed . | . . . Highest Temperature 429 | . 429 36 Average Temperature 155 | . 178 16 Received Heat Transfer 444 | . 210 234 Effects 8 | . 8 . Shutdowns 2 | . 2 . Energy Bleed 2 | . 2 . Interference 1 | . 1 . Short Circuit 2 | . 2 . Damage (minor) 1 | . 1 . Siege Activations . | . . . Robots Corrupted . | . . . Combat Hostiles . | . . . Parts Fried . | . . . Impact Corruptions . | . . . Robots Melted 1 | . . 1 Combat Hostiles 1 | . . 1 Parts Melted 8 | . . 8 Heat Transferred 2012 | . 481 1531 Parts Sabotaged . | . . . Parts Stolen . | . . . Parts Stripped . | . . . Power Chain Reactions . | . . . Alert | -11 -10 -10 ------- Run | Yrd Mat Sub Peak Influence 191 | . 191 . Initial . | . . . Average 54 | . 57 . Maximum Alert Level . | . . . Low Security (%) 100 | 100 100 . Level 1 . | . . . Level 2 . | . . . Level 3 . | . . . Level 4 . | . . . Level 5 . | . . . High Security . | . . . Max Security . | . . . Squads Dispatched . | . . . Investigation . | . . . Extermination . | . . . Reinforcement . | . . . Assault . | . . . Garrison . | . . . Intercept . | . . . Searches Triggered . | . . . Construction Impeded . | . . . Haulers Reinforced . | . . . Active Scanning Responses . | . . . Cargo Convoy Interrupts . | . . . Stealth | -11 -10 -10 --------- Run | Yrd Mat Sub Distress Signals 2 | . 2 . Communications Jammed . | . . . Distress Signals . | . . . Times Spotted 27 | . 15 12 Peak Tracking Total 5 | . 5 2 Tactical Retreats 2 | . 2 . Traps | -11 -10 -10 ------- Run | Yrd Mat Sub Traps Triggered 2 | . . 2 Indirectly . | . . . Trap Hack Attempts . | . . . Triggered . | . . . Disarmed . | . . . Reprogrammed . | . . . Reused . | . . . Traps Extracted . | . . . Installed . | . . . Triggered . | . . . Machines | -11 -10 -10 ---------- Run | Yrd Mat Sub Machines Disabled 4 | . 3 1 Max in Single Turn 1 | . 1 1 Machines Repaired . | . . . Machines Dismantled . | . . . Machines Sabotaged . | . . . Overloaded Fab Kills . | . . . Hacking | -11 -10 -10 --------- Run | Yrd Mat Sub Machines Accessed 1 | . . 1 Terminals . | . . . Fabricators . | . . . Repair Stations . | . . . Recycling Units . | . . . Scanalyzers . | . . . Garrison Access . | . . . Total Hacks 1 | . . 1 Successful 1 | . . 1 Failed . | . . . Catastrophic . | . . . Database Lockouts . | . . . Manual . | . . . Terminals . | . . . Fabricators . | . . . Repair Stations . | . . . Recycling Units . | . . . Scanalyzers . | . . . Garrison Access . | . . . Terminal Hacks 1 | . . 1 Derelict Proto ID Bank 1 | . . 1 Fabricator Hacks . | . . . Repair Station Hacks . | . . . Recycling Unit Hacks . | . . . Scanalyzer . | . . . Garrison Access Hacks . | . . . Unauthorized Hacks . | . . . Terminals . | . . . Fabricators . | . . . Repair Stations . | . . . Recycling Units . | . . . Scanalyzers . | . . . Garrison Access . | . . . Data Cores Recovered . | . . . Used . | . . . Hacking Detections . | . . . Full Trace Events . | . . . Feedback Events . | . . . Feedback Blocked . | . . . Robot Schematics Acquired . | . . . Robots Built . | . . . Authchips . | . . . Time . | . . . Total Robot Build Rating . | . . . Part Schematics Acquired . | . . . Parts Built . | . . . Authchips . | . . . Time . | . . . Total Part Build Rating . | . . . Parts Repaired . | . . . Time . | . . . Parts Recycled . | . . . Recycled Matter . | . . . Retrieved Matter . | . . . Retrieved Components . | . . . Parts Scanalyzed . | . . . Part Schematics Acquired . | . . . Parts Damaged . | . . . Bothacking | -11 -10 -10 ------------ Run | Yrd Mat Sub Used RIF Installer . | . . . Robots Hacked . | . . . Non-combat . | . . . Combat . | . . . Robot Hacks Applied . | . . . Relay Couplers Released . | . . . Fabnet Peak Effective % . | . . . Robots Rewired . | . . . Allies Hacked . | . . . Hacks Repelled . | . . . Allies | -11 -10 -10 -------- Run | Yrd Mat Sub Total Allies . | . . . Largest Group . | . . . Highest-Rated Group . | . . . Highest-Rated Ally . | . . . Total Orders . | . . . Ally Attacks . | . . . Total Damage . | . . . Kills . | . . . Allies Corrupted . | . . . Allies Melted . | . . . Intel | -11 -10 -10 ------- Run | Yrd Mat Sub Robot Analysis Total . | . . . Derelict Logs Recovered 1 | . . 1 Drone Launches . | . . . Drone Recoveries . | . . . Exploration | -11 -10 -10 ------------- Run | Yrd Mat Sub Turns Passed 2208 | 38 746 1424 Spaces Moved 1403 | 37 410 956 Core 7 | 7 . . Treads . | . . . Legs . | . . . Wheels 1396 | 30 410 956 Hover . | . . . Flight . | . . . Fastest Speed 50 | 50 80 90 Average Speed 100 | 74 93 104 Slowest Speed 105 | 80 105 105 Overloaded Moves . | . . . Propulsion Burnouts . | . . . Robots Hopped . | . . . Cave-ins Triggered . | . . . Exploration Rate (%) 42 | 3 61 63 Regions Visited 2 Branch Regions 1 Pre-discovered Areas . | . . . Known Exits Taken . | . . . Unknown Exits Taken 2 | 1 1 . Scrap Searched 8 | . . 8 Spaces Dug . | . . . Terrain Destroyed 22 | . . 22 Melee . | . . . Projectile . | . . . AOE 22 | . . 22 Terrain Rammed . | . . . Walls Destroyed . | . . . Machines Disabled . | . . . Actions | -11 -10 -10 --------- Run | Yrd Mat Sub Total 1915 | 43 710 1162 Wait 302 | . 237 65 Move 1401 | 36 409 956 Hop . | . . . Pick Up 17 | . 13 4 Fast Attach 10 | 6 1 3 Attach . | . . . Detach . | . . . Swap 22 | 1 10 11 Drop 12 | . 4 8 Fire 144 | . 36 108 Melee . | . . . Ram . | . . . Kick . | . . . Crush . | . . . Escape Stasis . | . . . Rewire . | . . . Trap . | . . . Miscellaneous 7 | . . 7 Route ------- -11/Scrapyard -10/Materials (discovered 4 exits: [*Mat x2] / [*Min] / *Sub) -10/Subcaves (discovered 2 exits: [*Mat x2]) History --------- Turn | Location | Event 25 | -11/Scrapyard | Discovered new exit (range 16) 39 | -11/Scrapyard | Entered Materials 93 | -10/Materials | Discovered new exit (range 15) 300 | -10/Materials | Discovered new exit (range 13) 311 | -10/Materials | Build established: Mutant 351 | -10/Materials | Discovered new exit (range 9) 706 | -10/Materials | Discovered new exit (range 6) 785 | -10/Materials | Entered Subcaves 1176 | -10/Subcaves | Shifting Twisted Machinery released Sub. Monowheel 1185 | -10/Subcaves | Shifting Twisted Machinery released Sub. Beam Cannon 1352 | -10/Subcaves | Learned location of 1 exit from Materials 1413 | -10/Subcaves | Core integrity fell below 50% 1432 | -10/Subcaves | Visited 4L-MR0's lab 1449 | -10/Subcaves | Found Power Bank 1718 | -10/Subcaves | Discovered new exit (range 10) 1737 | -10/Subcaves | Shifting Twisted Machinery released Sub. Beam Cannon 1748 | -10/Subcaves | Shifting Twisted Machinery released Sub. Power Source 2014 | -10/Subcaves | A swath of the cavern ceiling suddenly collapsed 2173 | -10/Subcaves | Shifting Twisted Machinery released Flamer 2173 | -10/Subcaves | Discovered new exit (range 13) 2176 | -10/Subcaves | Shifting Twisted Machinery released Sub. Power Source 2202 | -10/Subcaves | Core integrity fell below 20% 2209 | -10/Subcaves | Destroyed by 64-46P(R) with Subdweller Laser Last Messages --------------- 02098_ Found Battle Rifle. 02098_ Found 50 Matter. 02099_ Searching scrap... 02099_ Found Battle Cannon. 02099_ Found Sub. Beam Cannon. 02099_ Found 38 Matter. 02101_ Dropped Hrd. Light Armor Plating. 02101_ Hrd. Light Armor Plating crushed and broken. 02113_ Acquired Sub. Shrapnel Launcher. Flamer falls loose from the Twisted Machinery. 02173_ EXIT=FOUND Sub. Power Source falls loose from the Twisted Machinery. 02180_ Dropped Lgt. Ion Engine. 02190_ EM-5DF(R) suffers critical hit (Burn). 02192_ EM-5DF(R) heat spikes uncontrollably. 02192_ EM-5DF(R) overheating. 02194_ Sub. Machine Gun shoots sparks and powers down. 02197_ EM-5DF(R) heat short circuits Disposable Heat Sink. 02203_ EM-5DF(R) destroyed. 02203_ Flamer destroyed. Map ----- +----------------------------------------------------+ | ?????????????????????????????????????????? | | ?????????????????????????????????????????? | | ?????????????????????????????????????????? | | ?????????????????????????????????????????? | | ?????????????????????????????????????????? | | ?????????????????????????????????????????? | | ?????????????????????????????????????????? | | ?????????????????????????????????????????? | | ?????????????????????????????????????????? | | ?????????????????????????????????????????? | | ?????????????????????????????????????????? | | ?????????????????????????????????????????? | | ?????????????????????????????????????????? | | ?????????????????????????????????????????? | | ?????????????????????????????